Workbook

Sheet Sheet1
A1: Fore | P1: Ref
A2: Participant | B2: BodyPosX | C2: Hip90deg | D2: Knee90deg | E2: Ankle90deg | F2: Hip180deg | G2: HipMinKneeAng | H2: HipatLegExt | I2: Knee180deg | J2: KneeMinKneeAng | K2: KneeatLegExt | L2: Ankle180deg | M2: AnkleMinKneeAng | N2: AnkleatLegExt | P2: Participant | Q2: BodyPosX | R2: Hip90deg | S2: Knee90deg | T2: Ankle90deg | U2: Hip180deg | V2: HipMinKneeAng | W2: HipatLegExt | X2: Knee180deg | Y2: KneeMinKneeAng | Z2: KneeatLegExt | AA2: Ankle180deg | AB2: AnkleMinKneeAng | AC2: AnkleatLegExt
A3: P01 | B3: -0.30 | C3: 64.12 | D3: 58.13 | E3: 83.93 | F3: 85.63 | G3: 84.26 | H3: 85.36 | I3: 27.95 | J3: 28.44 | K3: 26.87 | L3: 99.46 | M3: 97.81 | N3: 99.23 | P3: P01 | Q3: -0.35 | R3: 69.09 | S3: 46.76 | T3: 91.26 | U3: 87.58 | V3: 86.69 | W3: 87.49 | X3: 20.04 | Y3: 19.04 | Z3: 19.21 | AA3: 99.01 | AB3: 98.91 | AC3: 99.15
A4: P02 | B4: -0.22 | C4: 67.95 | D4: 55.41 | E4: 73.95 | F4: 86.29 | G4: 85.55 | H4: 86.18 | I4: 32.75 | J4: 28.97 | K4: 30.09 | L4: 93.96 | M4: 91.08 | N4: 93.04 | P4: P02 | Q4: -0.29 | R4: 59.86 | S4: 54.60 | T4: 85.38 | U4: 83.19 | V4: 80.45 | W4: 82.79 | X4: 29.62 | Y4: 31.04 | Z4: 27.63 | AA4: 100.75 | AB4: 98.90 | AC4: 100.79
A5: P03 | B5: -0.35 | C5: 60.60 | D5: 61.46 | E5: 84.73 | F5: 80.12 | G5: 78.75 | H5: 79.64 | I5: 39.24 | J5: 36.86 | K5: 37.04 | L5: 111.92 | M5: 110.02 | N5: 111.41 | P5: P03 | Q5: -0.34 | R5: 65.10 | S5: 50.61 | T5: 91.15 | U5: 82.99 | V5: 81.89 | W5: 82.71 | X5: 30.71 | Y5: 25.89 | Z5: 26.78 | AA5: 112.54 | AB5: 111.63 | AC5: 112.73
A6: P04 | B6: -0.28 | C6: 61.93 | D6: 64.39 | E6: 78.23 | F6: 82.21 | G6: 80.95 | H6: 81.43 | I6: 42.93 | J6: 40.58 | K6: 40.72 | L6: 93.40 | M6: 92.78 | N6: 93.19 | P6: P04 | Q6: -0.38 | R6: 56.55 | S6: 63.07 | T6: 81.73 | U6: 78.56 | V6: 77.24 | W6: 77.76 | X6: 40.56 | Y6: 38.49 | Z6: 38.06 | AA6: 99.92 | AB6: 98.41 | AC6: 98.96
A7: P05 | B7: -0.35 | C7: 62.37 | D7: 63.99 | E7: 71.46 | F7: 82.85 | G7: 81.94 | H7: 82.67 | I7: 39.85 | J7: 36.85 | K7: 37.62 | L7: 92.03 | M7: 88.95 | N7: 90.91 | P7: P05 | Q7: -0.38 | R7: 65.34 | S7: 55.57 | T7: 73.65 | U7: 82.35 | V7: 81.73 | W7: 82.54 | X7: 38.67 | Y7: 32.61 | Z7: 34.51 | AA7: 95.50 | AB7: 91.84 | AC7: 94.49
A8: P06 | B8: -0.33 | C8: 55.29 | D8: 63.91 | E8: 81.10 | F8: 81.31 | G8: 79.59 | H8: 80.72 | I8: 37.58 | J8: 37.52 | K8: 36.07 | L8: 93.58 | M8: 92.65 | N8: 93.37 | P8: P06 | Q8: -0.39 | R8: 56.13 | S8: 55.26 | T8: 84.48 | U8: 79.69 | V8: 77.59 | W8: 79.29 | X8: 34.94 | Y8: 31.00 | Z8: 30.02 | AA8: 101.75 | AB8: 101.02 | AC8: 102.30
A9: P07 | B9: -0.33 | C9: 58.90 | D9: 61.25 | E9: 80.76 | F9: 81.89 | G9: 80.77 | H9: 81.36 | I9: 34.22 | J9: 32.38 | K9: 32.66 | L9: 105.99 | M9: 104.62 | N9: 105.29 | P9: P07 | Q9: -0.39 | R9: 62.17 | S9: 49.86 | T9: 82.54 | U9: 81.78 | V9: 80.76 | W9: 81.41 | X9: 29.05 | Y9: 24.02 | Z9: 24.33 | AA9: 106.33 | AB9: 106.08 | AC9: 106.69
A10: P08 | B10: -0.30 | C10: 55.70 | D10: 65.39 | E10: 94.24 | F10: 79.94 | G10: 78.62 | H10: 79.44 | I10: 38.43 | J10: 37.44 | K10: 37.54 | L10: 117.25 | M10: 116.47 | N10: 117.09 | P10: P08 | Q10: -0.33 | R10: 58.04 | S10: 58.71 | T10: 95.83 | U10: 82.14 | V10: 81.02 | W10: 81.63 | X10: 33.25 | Y10: 30.10 | Z10: 30.34 | AA10: 111.25 | AB10: 110.09 | AC10: 110.65
A11: P09 | B11: -0.24 | C11: 60.89 | D11: 59.46 | E11: 79.85 | F11: 82.76 | G11: 81.46 | H11: 82.49 | I11: 37.08 | J11: 33.46 | K11: 34.44 | L11: 98.00 | M11: 96.22 | N11: 97.57 | P11: P09 | Q11: -0.30 | R11: 72.74 | S11: 43.35 | T11: 84.46 | U11: 86.69 | V11: 85.53 | W11: 86.56 | X11: 24.24 | Y11: 21.06 | Z11: 22.05 | AA11: 100.61 | AB11: 98.68 | AC11: 100.42
A12: P10 | B12: -0.30 | C12: 56.81 | D12: 66.14 | E12: 81.36 | F12: 80.09 | G12: 78.64 | H12: 79.62 | I12: 43.50 | J12: 41.43 | K12: 41.49 | L12: 97.32 | M12: 94.66 | N12: 96.06 | P12: P10 | Q12: -0.31 | R12: 56.73 | S12: 64.52 | T12: 78.53 | U12: 80.42 | V12: 79.13 | W12: 80.05 | X12: 41.06 | Y12: 38.91 | Z12: 39.46 | AA12: 96.81 | AB12: 94.52 | AC12: 96.01
A13: P11 | B13: -0.36 | C13: 55.99 | D13: 66.04 | E13: 74.53 | F13: 83.32 | G13: 82.03 | H13: 82.68 | I13: 32.42 | J13: 30.50 | K13: 30.23 | L13: 89.46 | M13: 89.10 | N13: 89.52 | P13: P11 | Q13: -0.41 | R13: 58.94 | S13: 54.25 | T13: 84.40 | U13: 81.78 | V13: 80.59 | W13: 81.28 | X13: 31.83 | Y13: 27.26 | Z13: 27.27 | AA13: 99.09 | AB13: 99.22 | AC13: 99.64
A14: P12 | B14: -0.32 | C14: 59.46 | D14: 63.22 | E14: 73.65 | F14: 80.74 | G14: 79.44 | H14: 80.16 | I14: 42.35 | J14: 38.58 | K14: 38.86 | L14: 88.25 | M14: 86.78 | N14: 87.51 | P14: P12 | Q14: -0.33 | R14: 59.32 | S14: 59.61 | T14: 75.46 | U14: 80.27 | V14: 78.92 | W14: 79.98 | X14: 39.90 | Y14: 35.61 | Z14: 35.96 | AA14: 91.26 | AB14: 89.50 | AC14: 90.62
A15: P13 | B15: -0.26 | C15: 56.77 | D15: 67.00 | E15: 92.35 | F15: 82.22 | G15: 80.96 | H15: 81.87 | I15: 39.54 | J15: 37.99 | K15: 38.24 | L15: 107.32 | M15: 106.10 | N15: 106.92 | P15: P13 | Q15: -0.32 | R15: 62.05 | S15: 53.70 | T15: 95.13 | U15: 82.51 | V15: 81.49 | W15: 82.07 | X15: 33.15 | Y15: 28.33 | Z15: 28.59 | AA15: 111.06 | AB15: 109.17 | AC15: 109.96
A16: P14 | B16: -0.28 | C16: 57.22 | D16: 64.22 | E16: 87.22 | F16: 78.85 | G16: 77.10 | H16: 77.73 | I16: 43.03 | J16: 40.99 | K16: 40.32 | L16: 108.28 | M16: 106.83 | N16: 107.64 | P16: P14 | Q16: -0.32 | R16: 59.76 | S16: 56.86 | T16: 85.76 | U16: 79.70 | V16: 78.44 | W16: 79.05 | X16: 36.50 | Y16: 32.83 | Z16: 32.66 | AA16: 108.89 | AB16: 107.19 | AC16: 108.24
A17: Mean | B17: =AVERAGE(B3:B16) -> -0.30 | C17: =AVERAGE(C3:C16) -> 59.57 | D17: =AVERAGE(D3:D16) -> 62.86 | E17: 81.24 | F17: 82.02 | G17: =AVERAGE(G3:G16) -> 80.72 | H17: =AVERAGE(H3:H16) -> 81.53 | I17: 37.92 | J17: =AVERAGE(J3:J16) -> 35.86 | K17: =AVERAGE(K3:K16) -> 35.87 | L17: 99.73 | M17: 98.15 | N17: 99.20 | P17: Mean | Q17: =AVERAGE(Q3:Q16) -> -0.34 | R17: =AVERAGE(R3:R16) -> 61.56 | S17: =AVERAGE(S3:S16) -> 54.77 | T17: 84.98 | U17: 82.12 | V17: 80.82 | W17: 81.76 | X17: 33.11 | Y17: 29.73 | Z17: 29.78 | AA17: 102.48 | AB17: 101.08 | AC17: 102.19
A18: SD | B18: =STDEV(B3:B16) -> 0.04 | C18: =STDEV(C3:C16) -> 3.67 | D18: =STDEV(D3:D16) -> 3.34 | E18: 6.85 | F18: 2.11 | G18: =STDEV(G3:G16) -> 2.29 | H18: =STDEV(H3:H16) -> 2.30 | I18: 4.65 | J18: =STDEV(J3:J16) -> 4.37 | K18: =STDEV(K3:K16) -> 4.43 | L18: 8.95 | M18: 9.10 | N18: 9.02 | P18: SD | Q18: =STDEV(Q3:Q16) -> 0.04 | R18: =STDEV(R3:R16) -> 4.94 | S18: =STDEV(S3:S16) -> 5.85 | T18: 6.66 | U18: 2.54 | V18: =STDEV(V3:V16) -> 2.70 | W18: =STDEV(W3:W16) -> 2.70 | X18: 6.18 | Y18: =STDEV(Y3:Y16) -> 5.96 | Z18: =STDEV(Z3:Z16) -> 5.91 | AA18: 6.51 | AB18: 6.84 | AC18: 6.58
A20: Back
A21: Participant | B21: BodyPosX | C21: Hip90deg | D21: Knee90deg | E21: Ankle90deg | F21: Hip180deg | G21: HipMinKneeAng | H21: HipatLegExt | I21: Knee180deg | J21: KneeMinKneeAng | K21: KneeatLegExt | L21: Ankle180deg | M21: AnkleMinKneeAng | N21: AnkleatLegExt | P21: Fore vs Ref | Q21: =B17-Q17 -> 0.04 | R21: =B18-Q18 -> 0.00
A22: P01 | B22: -0.38 | C22: 68.29 | D22: 42.06 | E22: 86.93 | F22: 85.87 | G22: 84.92 | H22: 85.63 | I22: 19.02 | J22: 14.71 | K22: 15.41 | L22: 105.06 | M22: 105.77 | N22: 106.09 | P22: Fore vs Back | Q22: =B17-B36 -> 0.07 | R22: =B18-B37 -> 0.00
A23: P02 | B23: -0.32 | C23: 72.89 | D23: 35.01 | E23: 85.46 | F23: 87.04 | G23: 86.56 | H23: 87.12 | I23: 17.06 | J23: 10.45 | K23: 12.11 | L23: 105.81 | M23: 106.60 | N23: 107.27 | P23: Ref vs Back | Q23: =Q17-B36 -> 0.03 | R23: =Q18-B37 -> -0.00
A24: P03 | B24: -0.37 | C24: 64.69 | D24: 45.12 | E24: 92.59 | F24: 83.83 | G24: 82.79 | H24: 83.66 | I24: 20.68 | J24: 15.67 | K24: 17.02 | L24: 117.19 | M24: 118.73 | N24: 118.67
A25: P04 | B25: -0.41 | C25: 60.86 | D25: 53.96 | E25: 84.85 | F25: 79.53 | G25: 78.54 | H25: 79.33 | I25: 37.64 | J25: 32.09 | K25: 32.48 | L25: 101.66 | M25: 101.30 | N25: 101.95
A26: P05 | B26: -0.41 | C26: 67.35 | D26: 50.58 | E26: 73.79 | F26: 82.97 | G26: 82.34 | H26: 83.01 | I26: 33.52 | J26: 27.94 | K26: 29.23 | L26: 97.38 | M26: 94.01 | N26: 96.28
A27: P06 | B27: -0.39 | C27: 56.33 | D27: 54.39 | E27: 85.55 | F27: 81.42 | G27: 80.30 | H27: 80.86 | I27: 29.23 | J27: 24.92 | K27: 25.17 | L27: 101.39 | M27: 102.75 | N27: 102.80
A28: P07 | B28: -0.45 | C28: 64.21 | D28: 46.46 | E28: 81.33 | F28: 81.37 | G28: 80.29 | H28: 81.24 | I28: 29.57 | J28: 24.33 | K28: 24.36 | L28: 106.79 | M28: 104.63 | N28: 106.29
A29: P08 | B29: -0.36 | C29: 56.91 | D29: 56.02 | E29: 95.07 | F29: 79.65 | G29: 78.41 | H29: 79.05 | I29: 33.51 | J29: 28.68 | K29: 29.02 | L29: 117.03 | M29: 116.70 | N29: 117.35
A30: P09 | B30: -0.31 | C30: 63.46 | D30: 46.22 | E30: 82.31 | F30: 82.15 | G30: 80.41 | H30: 81.72 | I30: 28.48 | J30: 24.79 | K30: 24.53 | L30: 103.46 | M30: 102.71 | N30: 104.27
A31: P10 | B31: -0.36 | C31: 58.03 | D31: 55.94 | E31: 85.65 | F31: 80.35 | G31: 78.58 | H31: 79.87 | I31: 34.06 | J31: 32.08 | K31: 30.64 | L31: 102.33 | M31: 100.95 | N31: 102.04
A32: P11 | B32: -0.41 | C32: 63.95 | D32: 46.09 | E32: 76.43 | F32: 83.55 | G32: 82.21 | H32: 83.23 | I32: 24.09 | J32: 20.65 | K32: 19.25 | L32: 97.10 | M32: 96.65 | N32: 97.92
A33: P12 | B33: -0.36 | C33: 61.39 | D33: 53.45 | E33: 73.29 | F33: 81.55 | G33: 80.06 | H33: 81.21 | I33: 31.27 | J33: 28.69 | K33: 28.47 | L33: 93.21 | M33: 92.09 | N33: 93.32
A34: P13 | B34: -0.36 | C34: 61.31 | D34: 50.79 | E34: 94.89 | F34: 82.68 | G34: 81.19 | H34: 82.34 | I34: 27.78 | J34: 24.71 | K34: 23.99 | L34: 111.51 | M34: 110.87 | N34: 111.60
A35: P14 | B35: -0.33 | C35: 59.19 | D35: 54.25 | E35: 87.93 | F35: 80.46 | G35: 79.09 | H35: 79.63 | I35: 31.19 | J35: 27.74 | K35: 27.90 | L35: 112.22 | M35: 112.71 | N35: 113.03
A36: Mean | B36: =AVERAGE(B22:B35) -> -0.37 | C36: =AVERAGE(C22:C35) -> 62.78 | D36: =AVERAGE(D22:D35) -> 49.31 | E36: 84.72 | F36: 82.32 | G36: 81.12 | H36: 81.99 | I36: 28.36 | J36: 24.10 | K36: 24.26 | L36: 105.15 | M36: 104.75 | N36: 105.64
A37: SD | B37: =STDEV(B22:B35) -> 0.04 | C37: =STDEV(C22:C35) -> 4.64 | D37: =STDEV(D22:D35) -> 6.11 | E37: 6.94 | F37: 2.21 | G37: =STDEV(G22:G35) -> 2.43 | H37: =STDEV(H22:H35) -> 2.38 | I37: 6.10 | J37: =STDEV(J22:J35) -> 6.54 | K37: =STDEV(K22:K35) -> 6.15 | L37: 7.26 | M37: 7.94 | N37: 7.52
